fUSD/lending_fUSD_20260404
["ID","MTS","AMOUNT","RATE_DAILY","PERIOD"]
[419698771,1775314232624,-500.0,0.00013752,2]
[419698772,1775314232639,-1072.04030549,0.00013753,5]
[419698773,1775314232650,-201.67684113,0.00013754,2]
[419698774,1775314232660,-627.94128454,0.00013754,2]
[419698775,1775314232670,-500.0,0.00013772,2]
[419698776,1775314232680,-500.0,0.00013772,2]
[419698777,1775314232691,-484.31700749,0.00013772,2]
[419698778,1775314232701,-500.0,0.00013773,2]
[419698779,1775314232710,-700.0,0.000138,5]
[419698780,1775314232720,-9282.56785073,0.00013832,2]
[419698781,1775314232731,-3866.0,0.00013836,2]
[419698782,1775314232741,-151.0,0.00013844,2]
[419698783,1775314232752,-153.43679859,0.00013844,2]
[419698784,1775314232762,-151.0,0.00013844,2]
[419698785,1775314232772,-151.0,0.00013844,2]
[419698786,1775314232782,-151.0,0.00013844,2]
[419698787,1775314232792,-151.0,0.00013844,2]
[419698788,1775314232802,-151.0,0.00013844,2]
[419698789,1775314232812,-151.0,0.00013844,2]
[419698790,1775314232822,-151.0,0.00013844,2]
[419698791,1775314232832,-151.0,0.00013844,2]
[419698792,1775314232842,-151.0,0.00013844,2]
[419698793,1775314232852,-151.0,0.00013844,2]
[419698794,1775314232862,-151.0,0.00013844,2]
[419698795,1775314232872,-276.03,0.0001385,2]
[419698796,1775314232882,-500.0,0.00013852,2]
[419698797,1775314232892,-500.0,0.00013852,2]
[419698798,1775314232902,-377.41827452,0.00013853,2]
[419698799,1775314232912,-500.0,0.00013853,2]
[419698800,1775314232921,-500.0,0.00013853,2]
[419698801,1775314232931,-500.0,0.00013853,2]
[419698802,1775314232942,-515.28433318,0.00013853,2]
[419698803,1775314232952,-500.0,0.00013853,2]
[419698804,1775314232962,-500.0,0.00013853,2]
[419698805,1775314232973,-500.0,0.00013853,2]
[419698806,1775314232983,-500.0,0.00013853,2]
[419698807,1775314232993,-500.0,0.00013853,2]
[419698808,1775314233003,-500.0,0.00013853,2]
[419698809,1775314233014,-500.0,0.00013853,2]
[419698810,1775314233024,-305675.0110034,0.00013854,2]
[419698813,1775314238063,-691.99419862,0.00013854,2]
[419698814,1775314238110,-903.05117694,0.00013854,2]
[419698815,1775314238163,-1576.07811883,0.00013854,2]
[419699158,1775314241699,-151.0,0.00013854,2]
[419699160,1775314241709,-151.0,0.00013854,2]
[419699162,1775314241718,-159.266849,0.00013854,2]
[419699164,1775314241728,-159.266849,0.00013854,2]
[419699165,1775314241738,-159.266849,0.00013854,2]
[419699166,1775314241748,-159.266849,0.00013854,2]
[419699167,1775314241757,-361.560894,0.00013854,2]
[419699168,1775314241766,-151.0,0.00013854,2]
[419699169,1775314241776,-361.560894,0.00013854,2]
[419699170,1775314241785,-151.0,0.00013854,2]
[419699171,1775314241795,-361.560894,0.00013854,2]
[419699172,1775314241805,-361.560894,0.00013854,2]
[419699173,1775314241814,-500.0,0.00013873,2]
[419699174,1775314241824,-500.0,0.00013873,2]
[419699175,1775314241833,-500.0,0.00013873,2]
[419699176,1775314241843,-500.0,0.00013873,2]
[419699177,1775314241853,-418.82438739,0.00013873,2]
[419699178,1775314241862,-503.37341793,0.00013873,2]
[419699179,1775314241871,-500.0,0.00013873,2]
[419699181,1775314241882,-178.83121777,0.00013873,2]
[419699183,1775314241892,-500.0,0.00013873,2]
[419699185,1775314241901,-513.6791618,0.00013873,2]
[419699186,1775314241911,-500.0,0.00013873,2]
[419699188,1775314241920,-183.74490038,0.00013873,2]
[419699190,1775314241930,-500.0,0.00013873,2]
[419699192,1775314241939,-500.96208165,0.00013873,2]
[419699194,1775314241949,-501.88837508,0.00013873,2]
[419699196,1775314241959,-500.0,0.00013873,2]
[419699198,1775314241968,-503.75625281,0.00013873,2]
[419699200,1775314241977,-500.0,0.00013873,2]
[419699203,1775314241987,-500.0,0.00013873,2]
[419699205,1775314241997,-500.0,0.00013873,2]
[419699207,1775314242007,-500.0,0.00013873,2]
[419699209,1775314242017,-500.0,0.00013873,2]
[419699211,1775314242026,-561.18350506,0.00013873,2]
[419699213,1775314242036,-1000.0,0.000139,5]
[419699215,1775314242045,-461.35735938,0.00013921,2]
[419699217,1775314242055,-198.15545373,0.00013951,2]
[419699219,1775314242065,-151.0,0.00013954,2]
[419699221,1775314242074,-151.0,0.00013954,2]
[419699222,1775314242084,-151.0,0.00013954,2]
[419699225,1775314242093,-916.57825,0.00013954,2]
[419699227,1775314242103,-1144.995082,0.00013954,2]
[419699229,1775314242114,-1144.995082,0.00013954,2]
[419699231,1775314242123,-916.57825,0.00013954,2]
[419699233,1775314242132,-1144.995082,0.00013954,2]
[419699235,1775314242141,-916.57825,0.00013954,2]
[419699237,1775314242150,-1144.995082,0.00013954,2]
[419699239,1775314242161,-916.57825,0.00013954,2]
[419699241,1775314242170,-500.0,0.00013973,2]
[419699243,1775314242180,-500.0,0.00013973,2]
[419699245,1775314242189,-500.45908735,0.00013973,2]
[419699247,1775314242200,-502.40500922,0.00013973,2]
[419699249,1775314242209,-500.0,0.00013973,2]
[419699251,1775314242219,-150.0,0.00013973,2]
[419699253,1775314242229,-150.0,0.00013973,2]
[419699255,1775314242238,-473.51720145,0.00014006,2]
[419699257,1775314242248,-1000.0,0.00014055,2]
[419699259,1775314242258,-9282.56785073,0.00014091,2]
[419699261,1775314242267,-276.03,0.00014124,2]
[419699263,1775314242277,-500.0,0.00014154,2]
[419699265,1775314242287,-500.0,0.00014154,2]
[419699267,1775314242296,-500.0,0.00014154,2]
[419699269,1775314242306,-500.0,0.00014154,2]
[419699271,1775314242315,-500.0,0.00014154,2]
[419699273,1775314242325,-500.0,0.00014154,2]
[419699275,1775314242334,-500.0,0.00014154,2]
[419699277,1775314242344,-500.0,0.00014155,2]
[419699279,1775314242354,-500.0,0.00014155,2]
[419699281,1775314242363,-172.01180661,0.00014183,2]
[419699283,1775314242373,-412.313367,0.0001421,2]
[419699285,1775314242382,-872.556031,0.0001423,2]
[419699287,1775314242392,-726.629301,0.0001425,2]
[419699290,1775314242401,-406.0,0.00014301,2]
[419699292,1775314242411,-167.681809,0.00014316,2]
[419699294,1775314242420,-202.451196,0.00014316,2]
[419699296,1775314242429,-597.01949969,0.00014321,2]
[419699297,1775314242439,-9282.56785073,0.00014349,2]
[419699299,1775314242448,-600.0,0.00014356,2]
[419699301,1775314242457,-1100.0,0.00014356,2]
[419699302,1775314242468,-276.03,0.00014398,2]
[419699303,1775314242477,-150.23775673,0.000144,2]
[419699304,1775314242487,-150.0,0.000144,2]
[419699305,1775314242496,-150.0,0.000144,2]
[419699306,1775314242506,-150.0,0.000144,2]
[419699307,1775314242515,-150.33770113,0.000144,2]
[419699308,1775314242525,-150.0,0.000144,2]
[419699310,1775314242535,-150.0,0.000144,2]
[419699312,1775314242545,-150.0,0.000144,2]
[419699314,1775314242554,-150.0,0.000144,2]
[419699316,1775314242564,-150.0,0.000144,2]
[419699317,1775314242573,-150.0,0.000144,2]
[419699319,1775314242582,-150.0,0.000144,2]
[419699322,1775314242592,-150.0,0.000144,2]
[419699325,1775314242602,-150.0,0.000144,2]
[419699328,1775314242611,-500.0,0.00014421,2]
[419699331,1775314242621,-501.18780645,0.00014421,2]
[419699334,1775314242630,-1004.16690782,0.00014421,2]
[419699336,1775314242639,-724.3005031,0.00014421,2]
[419699338,1775314242649,-150.0,0.00014428,2]
[419699339,1775314242659,-150.0,0.00014439,2]
[419699340,1775314242669,-150.0,0.00014439,2]
[419699341,1775314242679,-204.13,0.0001444,2]
[419699342,1775314242688,-150.0,0.00014442,2]
[419699343,1775314242697,-150.0,0.0001445,2]
[419699344,1775314242707,-150.0,0.0001445,2]
[419699346,1775314242717,-150.0,0.00014456,2]
[419699348,1775314242726,-150.0,0.00014478,2]
[419699350,1775314242736,-150.0,0.00014478,2]
[419699352,1775314242746,-150.0,0.00014484,2]
[419699353,1775314242755,-150.0,0.00014484,2]
[419699354,1775314242764,-150.0,0.00014489,2]
[419699355,1775314242774,-150.0,0.00014494,2]
[419699356,1775314242783,-150.0,0.000145,2]
[419699357,1775314242794,-150.0,0.000145,2]
[419699358,1775314242803,-255.0,0.00014511,2]
[419699359,1775314242813,-150.0,0.00014512,2]
[419699360,1775314242822,-150.0,0.00014517,2]
[419699361,1775314242832,-150.0,0.00014517,2]
[419699362,1775314242841,-829.77078849,0.00014521,2]
[419699363,1775314242851,-1000.0,0.00014521,2]
[419699364,1775314242860,-150.0,0.00014526,2]
[419699365,1775314242870,-150.0,0.0001454,2]
[419699366,1775314242880,-150.0,0.00014545,2]
[419699368,1775314242894,-150.0,0.0001455,2]
[419699370,1775314242903,-150.0,0.0001455,2]
[419699372,1775314242912,-150.0,0.00014556,2]
[419699373,1775314242922,-150.0,0.00014556,2]
[419699374,1775314242932,-150.0,0.00014568,2]
[419699375,1775314242941,-150.0,0.00014568,2]
[419699376,1775314242951,-150.0,0.00014578,2]
[419699377,1775314242960,-150.0,0.00014588,2]
[419699378,1775314242970,-150.0,0.00014595,2]
[419699379,1775314242980,-150.0,0.00014595,2]
[419699380,1775314242991,-150.0,0.00014596,2]
[419699381,1775314243001,-150.0,0.000146,2]
[419699382,1775314243010,-150.0,0.000146,2]
[419699383,1775314243021,-9282.56785073,0.00014608,2]
[419699384,1775314243031,-150.0,0.00014611,2]
[419699385,1775314243042,-150.0,0.00014625,2]
[419699386,1775314243052,-423.06148524,0.00014631,2]
[419699387,1775314243062,-150.0,0.00014634,2]
[419699388,1775314243073,-150.0,0.00014634,2]
[419699389,1775314243083,-150.0,0.0001465,2]
[419699390,1775314243093,-150.0,0.0001465,2]
[419699391,1775314243103,-150.0,0.00014653,2]
[419699392,1775314243114,-150.0,0.00014653,2]
[419699393,1775314243124,-150.0,0.00014666,2]
[419699394,1775314243134,-150.0,0.00014667,2]
[419699395,1775314243145,-150.0,0.00014667,2]
[419699396,1775314243155,-276.03,0.00014672,2]
[419699397,1775314243165,-150.0,0.00014673,2]
[419699398,1775314243175,-150.0,0.00014673,2]
[419699399,1775314243185,-150.0,0.00014681,2]
[419699400,1775314243196,-150.0,0.00014682,2]
[419699401,1775314243205,-150.0,0.00014691,2]
[419699402,1775314243215,-150.0,0.00014695,2]
[419699403,1775314243225,-150.0,0.000147,2]
[419699404,1775314243235,-150.0,0.000147,2]
[419699405,1775314243245,-150.0,0.00014709,2]
[419699406,1775314243255,-150.0,0.00014712,2]
[419699407,1775314243265,-150.0,0.00014712,2]
[419699408,1775314243275,-150.0,0.00014737,2]
[419699409,1775314243285,-150.0,0.00014737,2]
[419699410,1775314243295,-150.0,0.0001475,2]
[419699411,1775314243306,-150.0,0.0001475,2]
[419699412,1775314243316,-150.0,0.00014751,2]
[419699413,1775314243326,-150.0,0.00014751,2]
[419699414,1775314243336,-150.0,0.00014756,2]
[419699415,1775314243346,-150.0,0.00014765,2]
[419699416,1775314243357,-150.0,0.00014776,2]
[419699417,1775314243367,-150.0,0.00014779,2]
[419699418,1775314243377,-1974.94062421,0.00014787,2]
[419699419,1775314243388,-150.0,0.0001479,2]
[419699420,1775314243398,-150.0,0.0001479,2]
[419699421,1775314243408,-150.0,0.00014793,2]
[419699422,1775314243418,-150.0,0.000148,2]
[419699423,1775314243428,-150.0,0.000148,2]
[419699424,1775314243438,-150.0,0.00014821,2]
[419699425,1775314243449,-150.0,0.00014821,2]
[419699426,1775314243459,-150.0,0.00014823,2]
[419699427,1775314243469,-415.31553778,0.00014823,2]
[419699428,1775314243479,-627.94128454,0.00014827,2]
[419699429,1775314243488,-150.0,0.00014829,2]
[419699430,1775314243498,-150.0,0.00014829,2]
[419699431,1775314243508,-1000.0,0.00014831,2]
[419699432,1775314243518,-150.0,0.00014836,2]
[419699433,1775314243528,-211.87,0.00014844,2]
[419699434,1775314243538,-150.0,0.00014844,2]
[419699435,1775314243548,-150.0,0.00014849,2]
[419699436,1775314243558,-150.0,0.0001485,2]
[419699437,1775314243569,-150.0,0.0001485,2]
[419699438,1775314243579,-150.0,0.00014863,2]
[419699439,1775314243588,-9282.56785073,0.00014866,2]
[419699440,1775314243599,-150.0,0.00014868,2]
[419699441,1775314243609,-150.0,0.00014868,2]
[419699442,1775314243619,-150.0,0.00014871,2]
[419699443,1775314243628,-150.0,0.00014877,2]
[419699444,1775314243638,-150.0,0.000149,2]
[419699445,1775314243648,-150.0,0.000149,2]
[419699448,1775314243659,-150.0,0.00014905,2]
[419699449,1775314243669,-150.0,0.00014905,2]
[419699451,1775314243679,-150.0,0.00014907,2]
[419699453,1775314243688,-150.0,0.00014907,2]
[419699455,1775314243698,-150.0,0.00014933,2]
[419699457,1775314243709,-150.0,0.00014933,2]
[419699458,1775314243719,-150.0,0.00014933,2]
[419699459,1775314243728,-150.0,0.00014933,2]
[419699460,1775314243738,-150.0,0.00014933,2]
[419699461,1775314243748,-276.07,0.00014945,2]
[419699462,1775314243758,-150.0,0.00014946,2]
[419699463,1775314243767,-150.0,0.00014946,2]
[419699464,1775314243777,-150.0,0.00014947,2]
[419699465,1775314243787,-150.0,0.0001495,2]
[419699466,1775314243798,-150.0,0.0001495,2]
[419699467,1775314243808,-150.0,0.00014961,2]
[419699468,1775314243818,-150.0,0.00014965,2]
[419699469,1775314243828,-150.0,0.00014982,2]
[419699470,1775314243839,-150.0,0.00014985,2]
[419699471,1775314243848,-150.0,0.00014985,2]
[419699472,1775314243858,-150.0,0.00014989,2]
[419699473,1775314243868,-150.0,0.00014989,2]
[419699474,1775314243878,-300.0,0.00015,2]
[419699475,1775314243888,-150.0,0.00015,2]
[419699476,1775314243898,-150.0,0.00015,2]
[419699477,1775314243908,-150.0,0.00015018,2]
[419699478,1775314243917,-150.0,0.00015022,2]
[419699479,1775314243927,-150.0,0.00015024,2]
[419699480,1775314243937,-150.0,0.00015024,2]
[419699481,1775314243947,-150.0,0.00015032,2]
[419699482,1775314243958,-172.01180661,0.00015042,2]
[419699483,1775314243968,-150.0,0.00015046,2]
[419699484,1775314243979,-1600.0,0.00015048,2]
[419699485,1775314243989,-150.0,0.0001505,2]
[419699486,1775314244000,-150.0,0.0001505,2]
[419699487,1775314244010,-150.0,0.00015059,2]
[419699488,1775314244020,-150.0,0.00015063,2]
[419699489,1775314244030,-150.0,0.00015063,2]
[419699490,1775314244040,-215.56,0.00015068,2]
[419699491,1775314244051,-744.6131476,0.00015068,2]
[419699492,1775314244061,-803.07880727,0.00015068,2]
[419699493,1775314244072,-150.0,0.00015074,2]
[419699494,1775314244082,-150.0,0.00015074,2]
[419699495,1775314244093,-1000.0,0.00015088,2]
[419699496,1775314244104,-300.0,0.000151,2]
[419699497,1775314244115,-150.0,0.000151,2]
[419699498,1775314244125,-150.0,0.000151,2]
[419699499,1775314244136,-150.0,0.00015102,2]
[419699500,1775314244146,-150.0,0.00015102,2]
[419699501,1775314244158,-150.0,0.00015102,2]
[419699502,1775314244168,-150.0,0.00015111,2]
[419699503,1775314244179,-150.0,0.00015116,2]
[419699504,1775314244190,-9282.56785073,0.00015125,2]
[419699505,1775314244200,-150.0,0.00015127,2]
[419699506,1775314244211,-150.0,0.0001513,2]
[419699507,1775314244222,-150.0,0.00015141,2]
[419699508,1775314244233,-150.0,0.00015141,2]
[419699509,1775314244243,-211.87,0.00015143,2]
[419699510,1775314244253,-150.0,0.0001515,2]
[419699511,1775314244263,-150.0,0.0001515,2]
[419699512,1775314244274,-150.0,0.00015153,2]
[419699513,1775314244284,-150.0,0.00015158,2]
[419699514,1775314244295,-150.0,0.00015158,2]
[419699515,1775314244305,-204.13,0.00015162,2]
[419699516,1775314244315,-310.4251096,0.00015167,2]
[419699517,1775314244325,-500.0,0.00015167,2]
[419699518,1775314244335,-500.0,0.00015167,2]
[419699519,1775314244346,-1428.38747117,0.00015167,2]
[419699520,1775314244355,-200.0,0.00015167,2]
[419699521,1775314244367,-500.0,0.00015167,2]
[419699522,1775314244377,-9407.62396624,0.00015167,2]
[419699523,1775314244387,-500.0,0.00015167,2]
[419699524,1775314244396,-500.0,0.00015167,2]
[419699525,1775314244407,-500.0,0.00015167,2]
[419699526,1775314244417,-250.0,0.00015167,2]
[419699527,1775314244427,-500.0,0.00015167,2]
[419699528,1775314244437,-250.0,0.00015167,2]
[419699529,1775314244447,-500.0,0.00015167,2]
[419699530,1775314244457,-250.0,0.00015167,2]
[419699531,1775314244467,-500.0,0.00015167,2]
[419699532,1775314244477,-250.0,0.00015167,2]
[419699533,1775314244487,-500.0,0.00015167,2]
[419699534,1775314244497,-250.0,0.00015167,2]
[419699535,1775314244507,-500.0,0.00015167,2]
[419699536,1775314244517,-250.0,0.00015167,2]
[419699537,1775314244527,-500.0,0.00015167,2]
[419699538,1775314244536,-250.0,0.00015167,2]
[419699539,1775314244546,-250.0,0.00015167,2]
[419699540,1775314244555,-250.0,0.00015167,2]
[419699541,1775314244565,-250.0,0.00015167,2]
[419699542,1775314244575,-250.0,0.00015167,2]
[419699543,1775314244584,-500.0,0.00015167,2]
[419699544,1775314244594,-500.0,0.00015167,2]
[419699545,1775314244604,-500.0,0.00015167,2]
[419699546,1775314244613,-500.0,0.00015167,2]
[419699547,1775314244624,-151.0,0.00015167,2]
[419699548,1775314244634,-500.0,0.00015167,2]
[419699549,1775314244644,-500.0,0.00015167,2]
[419699550,1775314244654,-500.0,0.00015167,2]
[419699551,1775314244664,-500.0,0.00015167,2]
[419699552,1775314244674,-174.61919141,0.00015167,2]
[419699553,1775314244683,-743.50770149,0.00015167,2]
[419699554,1775314244693,-500.0,0.00015167,2]
[419699555,1775314244703,-500.0,0.00015167,2]
[419699556,1775314244712,-500.0,0.00015167,2]
[419699557,1775314244721,-200.0,0.00015167,2]
[419699558,1775314244731,-279.9045709,0.00015167,2]
[419699559,1775314244740,-170.0,0.00015167,2]
[419699560,1775314244751,-170.0,0.00015167,2]
[419699561,1775314244761,-170.0,0.00015167,2]
[419699562,1775314244770,-170.0,0.00015167,2]
[419699563,1775314244780,-170.0,0.00015167,2]
[419699564,1775314244789,-170.0,0.00015167,2]
[419699565,1775314244799,-170.0,0.00015167,2]
[419699566,1775314244810,-170.0,0.00015167,2]
[419699567,1775314244827,-170.0,0.00015167,2]
[419699568,1775314244837,-170.0,0.00015167,2]
[419699569,1775314244847,-170.0,0.00015167,2]
[419699570,1775314244859,-150.0,0.0001518,2]
[419699571,1775314244870,-150.0,0.0001518,2]
[419699572,1775314244880,-150.0,0.00015186,2]
[419699573,1775314244890,-150.0,0.000152,2]
[419699574,1775314244900,-150.0,0.000152,2]
[419699575,1775314244911,-150.0,0.000152,2]
[419699576,1775314244921,-150.0,0.000152,2]
[419699577,1775314244931,-150.0,0.000152,2]
[419699578,1775314244941,-10000.0,0.00015205,2]
[419699579,1775314244951,-150.0,0.00015214,2]
[419699580,1775314244960,-150.0,0.0001522,2]
[419699581,1775314244971,-150.0,0.0001522,2]
[419699582,1775314244981,-500.0,0.00015222,2]
[419699583,1775314244992,-151.0,0.00015222,2]
[419699584,1775314245003,-150.0,0.00015242,2]
[419699585,1775314245013,-150.0,0.00015242,2]
[419699586,1775314245024,-150.0,0.00015247,2]
[419699587,1775314245034,-150.0,0.0001525,2]
[419699588,1775314245044,-150.0,0.0001525,2]
[419699589,1775314245054,-500.0,0.00015256,2]
[419699590,1775314245064,-500.0,0.00015256,2]
[419699591,1775314245074,-500.0,0.00015256,2]
[419699592,1775314245083,-500.0,0.00015256,2]
[419699593,1775314245093,-500.0,0.00015256,2]
[419699594,1775314245103,-500.0,0.00015256,2]
[419699595,1775314245112,-500.0,0.00015256,2]
[419699596,1775314245123,-500.0,0.00015256,2]
[419699597,1775314245133,-500.0,0.00015256,2]
[419699598,1775314245143,-481.0,0.00015256,2]
[419699599,1775314245152,-150.0,0.00015256,2]
[419699600,1775314245162,-150.0,0.00015256,2]
[419699601,1775314245172,-150.0,0.00015256,2]
[419699602,1775314245182,-150.0,0.00015256,2]
[419699603,1775314245192,-150.0,0.00015256,2]
[419699604,1775314245202,-166.0,0.00015256,2]
[419699605,1775314245212,-150.0,0.00015259,2]
[419699606,1775314245222,-150.0,0.00015259,2]
[419699607,1775314245231,-150.0,0.0001527,2]
[419699608,1775314245241,-150.0,0.00015273,2]
[419699609,1775314245251,-500.0,0.00015277,2]
[419699610,1775314245261,-151.0,0.00015277,2]
[419699611,1775314245270,-150.0,0.00015284,2]
[419699612,1775314245280,-150.0,0.00015289,2]
[419699613,1775314245290,-150.0,0.00015298,2]
[419699614,1775314245300,-150.0,0.00015298,2]
[419699615,1775314245310,-150.0,0.00015298,2]
[419699616,1775314245320,-150.0,0.000153,2]
[419699617,1775314245329,-150.0,0.000153,2]
[419699618,1775314245338,-150.99,0.0001531,2]
[419699619,1775314245348,-4999.99,0.0001531,2]
[419699620,1775314245358,-999.99,0.0001531,2]
[419699621,1775314245368,-9277.79,0.0001531,2]
[419699622,1775314245378,-150.0,0.00015326,2]
[419699623,1775314245387,-150.0,0.00015326,2]
[419699624,1775314245397,-500.0,0.00015332,2]
[419699625,1775314245407,-151.0,0.00015332,2]
[419699626,1775314245417,-150.0,0.00015337,2]
[419699627,1775314245427,-150.0,0.00015337,2]
[419699628,1775314245437,-204.56,0.00015339,2]
[419699629,1775314245447,-150.0,0.00015341,2]
[419699630,1775314245457,-150.0,0.0001535,2]
[419699631,1775314245466,-150.0,0.0001535,2]
[419699632,1775314245476,-150.0,0.00015354,2]
[419699633,1775314245486,-150.0,0.00015368,2]
[419699634,1775314245496,-1000.0,0.00015371,2]
[419699635,1775314245506,-150.0,0.00015376,2]
[419699636,1775314245516,-150.0,0.00015376,2]
[419699637,1775314245526,-150.0,0.00015378,2]
[419699638,1775314245536,-5888.0,0.00015379,2]
[419699639,1775314245546,-150.0,0.00015382,2]
[419699640,1775314245556,-9282.56785073,0.00015383,2]
[419699641,1775314245567,-500.0,0.00015387,2]
[419699642,1775314245577,-151.0,0.00015387,2]
[419699643,1775314245587,-200.47678052,0.00015393,2]
[419699645,1775314245597,-150.0,0.000154,2]
[419699647,1775314245606,-150.0,0.000154,2]
[419699648,1775314245616,-200.0,0.000154,2]
[419699649,1775314245625,-150.0,0.00015411,2]
[419699650,1775314245635,-150.0,0.00015411,2]
[419699651,1775314245646,-5888.0,0.00015412,2]
[419699652,1775314245656,-150.0,0.00015415,2]
[419699653,1775314245666,-150.0,0.00015415,2]
[419699654,1775314245676,-150.0,0.00015418,2]
[419699655,1775314245686,-151.0,0.00015422,2]
[419699656,1775314245696,-151.0,0.00015422,2]
[419699657,1775314245706,-159.266849,0.00015422,2]
[419699658,1775314245716,-159.266849,0.00015422,2]
[419699659,1775314245726,-159.266849,0.00015422,2]
[419699660,1775314245736,-159.266849,0.00015422,2]
[419699661,1775314245747,-151.0,0.00015422,2]
[419699666,1775314246013,-151.0,0.00015422,2]
[419699667,1775314246068,-151.0,0.00015422,2]
[419699668,1775314246078,-150.0,0.00015428,2]
[419699669,1775314246088,-150.0,0.00015435,2]
[419699670,1775314246099,-150.0,0.00015439,2]
[419699671,1775314246108,-500.0,0.00015442,2]
[419699672,1775314246118,-151.0,0.00015442,2]
[419699673,1775314246128,-150.0,0.0001545,2]
[419699674,1775314246138,-150.0,0.0001545,2]
[419699675,1775314246148,-150.0,0.00015453,2]
[419699676,1775314246158,-150.0,0.00015454,2]
[419699677,1775314246168,-150.0,0.00015454,2]
[419699678,1775314246178,-150.0,0.00015467,2]
[419699679,1775314246188,-150.0,0.00015467,2]
[419699680,1775314246198,-150.0,0.00015467,2]
[419699681,1775314246208,-150.0,0.00015467,2]
[419699682,1775314246218,-150.0,0.00015467,2]
[419699683,1775314246229,-361.560894,0.00015467,2]
[419699684,1775314246238,-151.0,0.00015467,2]
[419699685,1775314246248,-361.560894,0.00015467,2]
[419699686,1775314246258,-151.0,0.00015467,2]
[419699687,1775314246268,-361.560894,0.00015467,2]
[419699688,1775314246278,-361.560894,0.00015467,2]
[419699689,1775314246288,-188.50854743,0.00015492,2]
[419699690,1775314246297,-161.04142276,0.00015492,2]
[419699691,1775314246306,-150.0,0.00015493,2]
[419699692,1775314246316,-150.0,0.00015493,2]
[419699693,1775314246326,-150.0,0.00015495,2]
[419699694,1775314246336,-150.0,0.00015495,2]
[419699695,1775314246347,-500.0,0.00015497,2]
[419699696,1775314246357,-151.0,0.00015497,2]
[419699697,1775314246366,-150.0,0.000155,2]
[419699698,1775314246376,-150.0,0.000155,2]
[419699699,1775314246385,-3255.0,0.00015507,2]
[419699700,1775314246395,-1000.0,0.00015515,2]
[419699701,1775314246404,-282.4838525,0.00015517,2]
[419699702,1775314246414,-150.0,0.00015523,2]
[419699703,1775314246423,-150.0,0.00015529,2]
[419699704,1775314246434,-150.0,0.00015532,2]
[419699705,1775314246443,-150.0,0.00015532,2]
[419699706,1775314246453,-150.0,0.00015537,2]
[419699707,1775314246463,-785.54,0.00015545,2]
[419699708,1775314246473,-150.0,0.0001555,2]
[419699709,1775314246482,-150.0,0.0001555,2]
[419699710,1775314246493,-150.0,0.00015551,2]
[419699711,1775314246503,-500.0,0.00015552,2]
[419699712,1775314246512,-151.0,0.00015552,2]
[419699713,1775314246522,-150.0,0.00015556,2]
[419699714,1775314246531,-150.0,0.00015564,2]